Cogmind - Beta 14 @@@ ROGUE MODE // 2024.10.19 @ 22:54:49 Player: WazdakkaGutsmek Result: Destroyed by as-35955 with Assembled Rifle Performance ------------- Evolutions (0) 0 Regions Visited (2) 400 Robots Destroyed (9) 45 Value Destroyed (214) 214 Prototype IDs (0) 0 Alien Tech Used (0) 0 Bonus (0) 0 TOTAL SCORE: 659 Bonus ------- None Cogmind --------- Core Integrity 0/250 Matter 225/300 Energy 97/100 System Corruption 0% Temperature Cool (0) Movement Core (50) Location -10/Mines Parts ------- > --- POWER (1) -------- (None) > --- PROPULSION (2) --- (None) > --- UTILITY (2) ------ (None) > --- WEAPON (2) ------- (None) > --- INVENTORY (5) ---- Light Treads Light Treads Small Laser Peak State ------------ > --- POWER ------------ Light Ion Engine > --- PROPULSION ------- Aluminum Leg Aluminum Leg > --- UTILITY ---------- Small Storage Unit Huge Storage Unit > --- WEAPON ----------- EM Pulse Gun Small Laser > --- INVENTORY -------- Light Treads Light Treads Wheel Wheel Grenade Launcher [Rating: 7] Favorites ----------- Power Light Ion Engine Engine Light Ion Engine Propulsion Aluminum Leg Treads Light Treads Leg Aluminum Leg Wheel Wheel Utility Small Storage Unit Device ECM Suite Storage Small Storage Unit Weapon Light Assault Rifle Energy Gun Small Laser Ballistic Gun Light Assault Rifle Launcher Grenade Launcher Build | -11 -10 -10 ------- Run | Yrd Mat Min Slots Evolved . | . . . Power . | . . . Propulsion . | . . . Utility . | . . . Weapon . | . . . Parts Attached 9 | . 8 1 Power 1 | . 1 . Engine 1 | . 1 . Core . | . . . Reactor . | . . . Propulsion 3 | . 3 . Treads 1 | . 1 . Leg . | . . . Wheel 2 | . 2 . Hover . | . . . Flight . | . . . Utility 2 | . 2 . Device 1 | . 1 . Storage 1 | . 1 . Processor . | . . . Hackware . | . . . Protection . | . . . Artifact . | . . . Weapon 3 | . 2 1 Energy Gun 2 | . 2 . Energy Cannon . | . . . Ballistic Gun . | . . . Ballistic Cannon . | . . . Launcher 1 | . . 1 Special Weapon . | . . . Impact Weapon . | . . . Slashing Weapon . | . . . Piercing Weapon . | . . . Special Melee Weapon . | . . . Unidentified Prototypes . | . . . Parts Lost 8 | . 3 5 Power 2 | . 1 1 Propulsion 2 | . . 2 Utility . | . . . Weapon 4 | . 2 2 Highest Loss Streak 5 | . 2 5 To Critical Strikes . | . . . Average Slot Usage (%) 80 | . 80 80 Engine 13 | . 14 11 Leg 23 | . 25 . Wheel 3 | . 1 22 Device 2 | . 1 11 Storage 13 | . 14 11 Energy Gun 12 | . 12 19 Ballistic Gun 9 | . 10 . Peak Build Rating 7 | . 7 7 Average Rating 5 | . 5 6 On Entrance 6 | 6 6 7 Naked Turns 3 | . . 3 Heaviest Build 88 | 10 88 88 Greatest Support 20 | 20 20 20 Greatest Overweight (x) 4 | . 4 4 Average Overweight (x) . | . . 3 Largest Inventory Capacity 25 | . 25 25 Average Capacity 10 | . 9 23 Most Carried 7 | . 7 3 Average Carried 5 | . 6 3 Final Capacity 25 | 8 25 5 Final Carried 6 | 6 3 3 Class Distribution -------------------- 100% | Mutant Dominant Class ---------------- Mutant | -10/Materials Mutant | -10/Mines Resources | -11 -10 -10 ----------- Run | Yrd Mat Min Matter Collected 265 | 180 85 . Remotely . | . . . Salvage Created 282 | . 282 . Parts 18 | . 18 . Haulers Intercepted . | . . . Recyclers Shooed 1 | . 1 . Parts Field Recycled . | . . . Retrieved Matter . | . . . Parts Self-Destructed . | . . . Prevented . | . . . Kills | -11 -10 -10 ------- Run | Yrd Mat Min Combat Hostiles Destroyed 8 | . 8 . Guns 8 | . 8 . Classes Destroyed 3 | . 3 . Worker 1 | . 1 . Swarmer 3 | . 3 . Grunt 5 | . 5 . Best Kill Streak 3 | . 3 . Combat Bots Only 3 | . 3 . Max Kills in Single Turn 1 | . 1 . Gunslinging . | . . . Exploded . | . . . Melee . | . . . Uniques/NPCs Destroyed . | . . . Combat | -11 -10 -10 -------- Run | Yrd Mat Min Hostile Shots Fired 73 | . 61 12 Missed 21 | . 19 2 Damage Taken 879 | . 480 399 Core 257 | . 74 183 Absorbed by Shields . | . . . Core Remaining (%) 100 | 100 . . Volleys Fired 74 | . 71 3 Largest 2 | . 2 2 Hottest 80 | . 80 70 Shots Fired 108 | . 103 5 Gun 105 | . 103 2 Cannon . | . . . Launcher 3 | . . 3 Special . | . . . Kinetic 60 | . 60 . Thermal 32 | . 32 . Explosive 3 | . . 3 Electromagnetic 13 | . 11 2 Robot Hit Streak 8 | . 8 2 Robot Miss Streak 3 | . 3 1 Penetration Max . | . . . Secondary Targets . | . . . Shots Hit Robots 69 | . 66 3 Core Hits 23 | . 18 5 Critical Kills . | . . . Critical Parts Destroyed 2 | . 2 . Critical Strikes 3 | . 3 . Destroy 2 | . 2 . Corrupt 1 | . 1 . Melee Attacks . | . . . Impact . | . . . Slashing . | . . . Piercing . | . . . Sneak Attacks . | . . . Combat Hostiles . | . . . Follow-up Attacks . | . . . Damage Inflicted 688 | . 629 59 Guns 640 | . 629 11 Cannons . | . . . Explosions 48 | . . 48 Melee . | . . . Ramming . | . . . Kinetic 317 | . 317 . Thermal 197 | . 197 . Explosive 48 | . . 48 Electromagnetic 126 | . 115 11 Impact . | . . . Slashing . | . . . Piercing . | . . . Highest Corruption . | . . . Average Corruption . | . . . Corruption Purged . | . . . Corruption Blocked . | . . . Overload Shots . | . . . Overflow Damage . | . . . Projectiles . | . . . Explosions . | . . . Melee . | . . . Knockbacks . | . . . Impact . | . . . Kinetic . | . . . Secondary . | . . . Self-Inflicted Damage . | . . . Shots . | . . . Rammed . | . . . Targets Rammed . | . . . Kicked . | . . . Crushed . | . . . Highest Temperature 88 | . 88 9 Average Temperature 34 | . 35 5 Received Heat Transfer 228 | . 228 . Siege Activations . | . . . Robots Corrupted . | . . . Combat Hostiles . | . . . Parts Fried 1 | . 1 . Impact Corruptions . | . . . Robots Melted . | . . . Combat Hostiles . | . . . Parts Melted . | . . . Heat Transferred 450 | . 450 . Parts Sabotaged . | . . . Parts Stolen . | . . . Parts Stripped . | . . . Power Chain Reactions . | . . . Alert | -11 -10 -10 ------- Run | Yrd Mat Min Peak Influence 192 | . 192 8 Initial 6 | . . 6 Average 84 | . 91 5 Maximum Alert Level 1 | . 1 . Low Security (%) 99 | . 99 100 Level 1 . | . . . Level 2 . | . . . Level 3 . | . . . Level 4 . | . . . Level 5 . | . . . High Security . | . . . Max Security . | . . . Squads Dispatched 1 | . 1 . Investigation 1 | . 1 . Extermination . | . . . Reinforcement . | . . . Assault . | . . . Garrison . | . . . Intercept . | . . . Searches Triggered . | . . . Construction Impeded . | . . . Haulers Reinforced . | . . . Active Scanning Responses . | . . . Cargo Convoy Interrupts . | . . . Stealth | -11 -10 -10 --------- Run | Yrd Mat Min Distress Signals . | . . . Communications Jammed . | . . . Distress Signals . | . . . Times Spotted 15 | . 11 4 Peak Tracking Total 3 | . 3 2 Tactical Retreats 1 | . 1 . Traps | -11 -10 -10 ------- Run | Yrd Mat Min Traps Triggered 1 | . 1 . Indirectly . | . . . Trap Hack Attempts . | . . . Triggered . | . . . Disarmed . | . . . Reprogrammed . | . . . Reused . | . . . Traps Extracted . | . . . Installed . | . . . Triggered . | . . . Machines | -11 -10 -10 ---------- Run | Yrd Mat Min Machines Disabled . | . . . Max in Single Turn . | . . . Machines Repaired . | . . . Machines Dismantled . | . . . Machines Sabotaged . | . . . Overloaded Fab Kills . | . . . Hacking | -11 -10 -10 --------- Run | Yrd Mat Min Machines Accessed 3 | . 3 . Terminals 3 | . 3 . Fabricators . | . . . Repair Stations . | . . . Recycling Units . | . . . Scanalyzers . | . . . Garrison Access . | . . . Total Hacks 12 | . 12 . Successful 8 | . 8 . Failed 4 | . 4 . Catastrophic . | . . . Database Lockouts . | . . . Manual 5 | . 5 . Terminals 12 | . 12 . Fabricators . | . . . Repair Stations . | . . . Recycling Units . | . . . Scanalyzers . | . . . Garrison Access . | . . . Terminal Hacks 3 | . 3 . Emergency Access Points 1 | . 1 . Alert Level 1 | . 1 . Zone Layout 1 | . 1 . Fabricator Hacks . | . . . Repair Station Hacks . | . . . Recycling Unit Hacks . | . . . Scanalyzer . | . . . Garrison Access Hacks . | . . . Unauthorized Hacks 5 | . 5 . Terminals 5 | . 5 . Botnet 2 | . 2 . Skim 3 | . 3 . Fabricators . | . . . Repair Stations . | . . . Recycling Units . | . . . Scanalyzers . | . . . Garrison Access . | . . . Data Cores Recovered . | . . . Used . | . . . Hacking Detections 1 | . 1 . Full Trace Events . | . . . Feedback Events . | . . . Feedback Blocked . | . . . Robot Schematics Acquired . | . . . Robots Built . | . . . Authchips . | . . . Time . | . . . Total Robot Build Rating . | . . . Part Schematics Acquired . | . . . Parts Built . | . . . Authchips . | . . . Time . | . . . Total Part Build Rating . | . . . Parts Repaired . | . . . Time . | . . . Parts Recycled . | . . . Recycled Matter . | . . . Retrieved Matter . | . . . Retrieved Components . | . . . Parts Scanalyzed . | . . . Part Schematics Acquired . | . . . Parts Damaged . | . . . Bothacking | -11 -10 -10 ------------ Run | Yrd Mat Min Used RIF Installer . | . . . Robots Hacked . | . . . Non-combat . | . . . Combat . | . . . Robot Hacks Applied . | . . . Relay Couplers Released . | . . . Fabnet Peak Effective % . | . . . Robots Rewired . | . . . Allies Hacked . | . . . Hacks Repelled . | . . . Allies | -11 -10 -10 -------- Run | Yrd Mat Min Total Allies . | . . . Largest Group . | . . . Highest-Rated Group . | . . . Highest-Rated Ally . | . . . Total Orders . | . . . Ally Attacks . | . . . Total Damage . | . . . Kills . | . . . Allies Corrupted . | . . . Allies Melted . | . . . Intel | -11 -10 -10 ------- Run | Yrd Mat Min Robot Analysis Total . | . . . Derelict Logs Recovered . | . . . Drone Launches . | . . . Drone Recoveries . | . . . Exploration | -11 -10 -10 ------------- Run | Yrd Mat Min Turns Passed 539 | . 493 46 Spaces Moved 275 | 1 246 28 Core 6 | . . 6 Treads . | . . . Legs 224 | 1 223 . Wheels 45 | . 23 22 Hover . | . . . Flight . | . . . Fastest Speed 50 | 120 120 50 Average Speed 122 | 120 123 120 Slowest Speed 400 | 120 400 140 Overloaded Moves . | . . . Propulsion Burnouts . | . . . Robots Hopped . | . . . Cave-ins Triggered . | . . . Exploration Rate (%) 16 | 2 41 7 Regions Visited 2 Branch Regions 1 Pre-discovered Areas . | . . . Known Exits Taken . | . . . Unknown Exits Taken 2 | 1 1 . Scrap Searched . | . . . Spaces Dug . | . . . Terrain Destroyed 19 | . . 19 Melee . | . . . Projectile . | . . . AOE 19 | . . 19 Terrain Rammed . | . . . Walls Destroyed . | . . . Machines Disabled . | . . . Actions | -11 -10 -10 --------- Run | Yrd Mat Min Total 380 | . 346 34 Wait 19 | . 17 2 Move 273 | . 245 28 Hop . | . . . Pick Up 1 | . 1 . Fast Attach 3 | . 3 . Attach 5 | . 5 . Detach 1 | . 1 . Swap 1 | . . 1 Drop 3 | . 3 . Fire 74 | . 71 3 Melee . | . . . Ram . | . . . Kick . | . . . Crush . | . . . Escape Stasis . | . . . Rewire . | . . . Trap . | . . . Miscellaneous . | . . . Route ------- -11/Scrapyard -10/Materials (discovered 2 exits: [*Mat] / [*Min]) -10/Mines History --------- Turn | Location | Event 1 | -11/Scrapyard | Discovered new exit (range 0) 1 | -11/Scrapyard | Entered Materials 171 | -10/Materials | Discovered new exit (range 15) 305 | -10/Materials | Build established: Mutant 431 | -10/Materials | Discovered new exit (range 16) 494 | -10/Materials | Entered Mines 497 | -10/Mines | Assembled infested the area 502 | -10/Mines | Assisted by a Guerilla fighting off Assembled 535 | -10/Mines | Core integrity fell below 50% 537 | -10/Mines | Released all parts (2) 538 | -10/Mines | Core integrity fell below 20% 540 | -10/Mines | Destroyed by as-35955 with Assembled Rifle Last Messages --------------- come on!" 00503_ 9R-067(h): "I'll hold them off! Go on ahead or try to find another way!" 00518_ C-30 ARC bursts open, deploying its payload. 00518_ D-53 Grenadier unfolds itself. 00530_ D-53 Grenadier suffers critical hit (Destroy). 00531_ as-76731 destroyed. 00532_ Lgt. Ion Engine destroyed. 00532_ Wheel destroyed. 00532_ HV Slug penetrates Earth. 00533_ The unstable cave ceiling collapses. 00533_ 9R-067(h) destroyed. 00534_ EM Pulse Gun destroyed. 00536_ The unstable cave ceiling collapses. 00536_ Grenade Launcher destroyed. 00536_ Wheel destroyed. 00537_ Released Huge Storage Unit. 00537_ Released ECM Suite. Map ----- +----------------------------------------------------+ | ??????????????????????????????????????? | | ??????????????????????????????????????? | | ??????????????????????????????????????? | | ????????????? ???????????????????????? | | ????????????? ???????????????????????? | | ????????????? ???????????????????????? | | ????????????? ???????????????????????? | | ????????????? ###????????????????????? | | ????????????? #????????????????????? | | ????????????? % #????????????????????? | | ????????????? #????????????????????? | | ????????????? #????????????????????? | | ????????????? ##????????????????????? | | ????????????# ###?? ???????????????? | | ??????????## #? ???????????????? | | ???######## # ??????????????? | | ??## # # ??????????????? | | ??# ??????????????? | | ??# ??????????????? | | ??## ??????????????? | | ???# ! #???????????????????? | | ???# # #???????????????????? | | ???# #####????????????????????? | | ???## #???????????????????????? | | ????## ####### #???????????????? | | ????# %$ % @ aa #???????????????? | | ????## ####### #???????????????? | | ?????# #????????????????????????? | | ?????# #????????????????????????? | | ?????#########????????????????????????? | | ??????????????????????????????????????? | | ??????????????????????????????????????? | | ??????????????????????????????????????? | | ??????????????????????????????????????? | | ??????????????????????????????????????? | | ??????????????????????????????????????? | | ??????????????????????????????????????? | | ??????????????????????????????????????? | | ??????????????????????????????????????? | | ??????????????????????????????????????? | | ??????????????????????????????????????? | | ??????????????????????????????????????? | | ??????????????????????????????????????? | | ??????????????????????????????????????? | | ??????????????????????????????????????? | | ??????????????????????????????????????? | | ??????????????????????????????????????? | | | | | | | +----------------------------------------------------+ Best States ------------- Heat Dissipation 25 Energy Generation 10 Energy Capacity 125 Matter Stores 300 Matter Capacity 300 Sight Range 16 Terrain Scan Density 10 ECM Strength 1 Evasion (%) 55 Item Schematics ----------------- None Robot Schematics ------------------ None Fabricated ------------ Nothing Alien Tech Used ----------------- None Achievements -------------- None Challenges ------------ None Game ------ Seed WardroneOvertunedScanner Manual? 0 Play Time 00:04:36 Cumulative 44.2 hours Start 2024.10.19 @ 22:44:52 End 2024.10.19 @ 22:54:49 Sessions 1 Manual Loads 0 Difficulty Rogue Special Mode None Game No. 47 Rogue 29 Adventurer 16 Explorer 2 Win Type - Total 1 Types 1/0/0/0/0/0/0/0/0 Lore% 13 Gallery% 37 Achievement% 33 Wizard Run 0 Options --------- Layout 2 ASCII 0 Keyboard 0 Movement Mouse Keybinds 1 Fullscreen 2 Font 24/Terminus Map View 50x44 Zoom Use 0% Tactical HUD 1 Map Filters NONE Filters NONE Steam 1 RUN: 5c85df41-eb4b-4e57-9828-b811a0cb02e7